bitfinex/quotes_ETHUSD_20250213
["timestamp","ask_amount","ask_price","bid_price","bid_amount"]
[1739439002197,5.34517063,2677.4,2677.3,9.335]
[1739439004850,5.34517063,2677.4,2677.3,8.98279936]
[1739439005428,5.34517063,2677.4,2677.3,8.15e-06]
[1739439005651,3.73614,2676.6,2676.1,0.7593]
[1739439005856,0.282,2676.5,2676.1,3.7593]
[1739439006057,4.01826,2676.5,2676.1,3.7593]
[1739439006454,4.01826,2676.5,2676.3,0.74605547]
[1739439006768,4.01826,2676.5,2675.8,0.8204]
[1739439006769,3.73688,2676.1,2675.8,0.8204]
[1739439007071,9.01687,2676.1,2675.6,0.8204]
[1739439007275,9.01687,2676.1,2675.7,3.0]
[1739439007423,5.28,2676.1,2675.6,4.5578]
[1739439007626,5.28,2676.1,2676.0,4.49890309]
[1739439008167,5.28,2676.1,2676.0,5.29930309]
[1739439008341,5.28,2676.1,2675.8,3.73714]
[1739439008536,5.28,2676.1,2676.0,3.73692]
[1739439009367,4.26298,2675.7,2675.6,0.57021508]
[1739439009672,4.26298,2675.7,2675.6,4.30768508]
[1739439010166,4.26298,2675.7,2675.6,5.05613343]
[1739439010542,5.28,2676.3,2675.8,3.73714]
[1739439010730,0.282,2676.3,2676.0,3.73683]
[1739439010926,0.282,2676.3,2676.0,3.73681]
[1739439011227,0.282,2676.3,2676.1,3.73675]
[1739439011744,2.41895,2675.8,2675.7,6.73733]
[1739439011941,2.41895,2675.8,2675.7,8.27574107]
[1739439012663,5.562,2676.4,2675.9,3.73706]
[1739439012970,5.562,2676.4,2675.8,3.0]
[1739439013218,5.562,2676.4,2676.0,3.7368]
[1739439013442,9.2984,2676.4,2675.8,6.73719]
[1739439013587,5.562,2676.4,2675.8,8.05561017]
[1739439014335,5.562,2676.4,2676.0,3.73688]
[1739439014699,9.29838,2676.4,2675.9,4.55751]
[1739439015033,9.29838,2676.4,2675.9,3.73701]
[1739439015239,3.73678,2676.1,2675.6,5.30634835]
[1739439016003,0.8073,2676.2,2675.7,3.7373]
[1739439016004,4.54402,2676.2,2675.7,3.7373]
[1739439016443,0.8073,2676.2,2675.6,1.56894835]
[1739439016737,3.73714,2675.9,2675.6,0.74844835]
[1739439016962,0.8208,2675.8,2675.6,0.74844835]
[1739439017125,6.1008,2675.8,2675.6,0.74844835]
[1739439022420,9.83808,2675.8,2675.6,0.74844835]
[1739439022622,9.83808,2675.8,2675.4,1.1443508]
[1739439023164,0.8051,2675.7,2675.4,1.1443508]
[1739439023366,0.8051,2675.1,2675.0,1.0]
[1739439023512,0.015,2674.5,2674.4,1.0]
[1739439023827,0.8051,2674.9,2674.4,1.0]
[1739439024029,0.282,2674.8,2674.4,1.0]
[1739439024236,0.015,2674.7,2674.4,1.0]
[1739439024430,3.73901,2674.5,2674.4,1.0]
[1739439024673,4.57941,2674.5,2674.4,1.0]
[1739439025561,8.17014724,2674.5,2674.4,1.0]
[1739439025721,4.57941,2674.5,2674.4,1.0]
[1739439025922,4.86141,2674.5,2674.4,1.0]
[1739439027356,1.1224,2674.5,2674.4,1.0]
[1739439027522,4.86141,2674.5,2674.4,1.0]
[1739439028234,1.1224,2674.5,2674.4,1.0]
[1739439028437,0.282,2674.5,2674.4,1.0]
[1739439028765,5.28,2675.1,2674.4,1.0]
[1739439029061,0.282,2674.5,2674.4,4.73915]
[1739439029626,0.282,2674.5,2674.4,5.664796]
[1739439030273,4.94424983,2675.8,2674.4,5.664796]
[1739439030274,0.282,2675.6,2675.1,0.789]
[1739439030426,0.282,2675.6,2675.2,3.73794]
[1739439031276,3.73785,2675.4,2674.7,0.8165]
[1739439031464,0.015,2675.2,2674.4,1.8165]
[1739439031641,3.73854,2674.9,2674.4,1.8165]
[1739439031840,3.73821,2675.1,2674.4,1.8165]
[1739439032024,3.73826,2675.1,2674.5,3.73901]
[1739439032240,5.295,2675.2,2674.9,3.73841]
[1739439032441,5.28,2675.2,2675.0,3.73822]
[1739439032722,0.808,2675.3,2674.9,3.73841]
[1739439032723,6.088,2675.3,2674.9,3.73841]
[1739439032923,6.088,2675.3,2675.0,3.7383]
[1739439033124,0.282,2675.2,2675.1,3.73817]
[1739439033960,0.798,2675.6,2675.1,0.747648]
[1739439034130,0.282,2675.8,2675.4,3.73775]
[1739439034472,0.282,2676.2,2676.0,3.73684]
[1739439034639,0.282,2676.2,2675.9,3.73695]
[1739439034840,0.282,2676.2,2675.8,0.8278]
[1739439035277,4.01874,2676.2,2675.8,0.8278]
[1739439035441,0.282,2676.2,2675.8,0.8278]
[1739439035646,4.01864,2676.2,2675.6,3.7374]
[1739439035850,4.01864,2676.2,2675.6,7.4748]
[1739439036232,4.01864,2676.2,2675.7,3.73731]
[1739439036771,0.282,2676.2,2675.8,3.73712]
[1739439037443,0.282,2676.2,2675.8,3.73706]
[1739439037644,0.282,2676.2,2675.5,3.8325]
[1739439037857,0.282,2676.3,2676.0,3.73684]
[1739439038570,0.282,2676.3,2675.8,3.73714]
[1739439039279,0.282,2676.3,2676.0,3.73683]
[1739439039512,0.282,2676.4,2676.0,3.73682]
[1739439039807,0.282,2676.4,2676.1,3.73677]
[1739439040317,0.282,2676.4,2676.1,3.73665]
[1739439041300,4.01837,2676.4,2676.0,4.50211]
[1739439041502,0.282,2676.4,2676.0,4.50211]
[1739439041815,0.282,2676.4,2676.1,3.73676]
[1739439042567,0.282,2676.4,2676.2,3.73652]
[1739439043827,0.282,2676.4,2676.1,3.73678]
[1739439044414,0.2895,2676.7,2676.5,3.73611]
[1739439044818,0.2895,2676.7,2676.3,3.73639]
[1739439044985,0.2895,2676.7,2676.1,0.823905]
[1739439045172,4.02545,2676.7,2676.0,4.35603724]
[1739439045380,3.73631,2676.5,2675.9,3.73695]
[1739439045630,3.73643,2676.4,2675.9,3.73695]
[1739439045819,3.73643,2676.4,2676.0,3.73689]
[1739439046122,3.73643,2676.4,2676.0,3.7369]
[1739439046276,0.0075,2676.5,2676.0,3.7369]
[1739439046619,3.73651,2676.3,2675.8,3.73712]
[1739439046818,0.7834,2676.3,2675.7,4.41843724]
[1739439047021,0.7834,2676.3,2676.1,3.73673]
[1739439047187,0.7834,2676.3,2675.9,3.73699]
[1739439047715,0.0075,2676.5,2676.3,3.73648]
[1739439047919,0.0075,2676.6,2676.3,3.73648]
[1739439047920,0.015,2676.6,2676.3,3.73648]
[1739439048427,0.297,2676.6,2675.7,4.41843724]
[1739439048579,0.297,2676.6,2676.2,3.73656]
[1739439048776,0.297,2676.6,2675.8,3.73711]
[1739439048977,3.73628,2676.5,2676.0,7.47369]
[1739439049191,0.297,2676.6,2676.1,3.73675]
[1739439049505,4.03313,2676.6,2676.1,3.73675]
[1739439050082,5.577,2676.6,2676.1,3.73675]
[1739439050291,7.47256,2676.5,2676.0,3.7369]
[1739439050499,3.73624,2676.5,2676.0,3.73686]
[1739439050726,3.73624,2676.5,2676.1,3.7367]
[1739439052437,5.577,2676.6,2676.0,3.7369]
[1739439052635,3.73628,2676.5,2676.1,3.73678]
[1739439053246,3.73642,2676.4,2675.9,3.73696]
[1739439053635,3.73628,2676.5,2675.9,3.73696]
[1739439053841,7.4726,2676.5,2675.9,3.73696]
[1739439054000,9.3131,2676.6,2675.9,3.73696]
[1739439054336,5.577,2676.6,2676.2,3.73661]
[1739439054541,9.31312,2676.6,2676.2,3.73658]
[1739439054839,9.31312,2676.6,2676.1,3.73669]
[1739439055040,9.31312,2676.6,2676.1,3.73668]
[1739439055206,5.577,2676.6,2675.7,4.41843724]
[1739439055416,3.73641,2676.4,2675.7,4.41843724]
[1739439055601,3.73641,2676.4,2676.0,3.73691]
[1739439055963,3.73641,2676.4,2675.9,3.73702]
[1739439055964,3.73644,2676.4,2675.9,3.73702]
[1739439056460,3.7367,2676.2,2675.8,3.7372]
[1739439056595,0.015,2676.1,2675.7,0.8277]
[1739439056797,3.75178,2676.1,2675.6,3.73741]
[1739439057056,3.7367,2676.2,2675.7,0.801]
[1739439057198,0.0075,2676.4,2676.1,3.73672]
[1739439057552,0.015,2676.4,2676.1,3.7367]
[1739439057712,0.015,2676.4,2676.2,3.73654]
[1739439057918,5.28,2676.6,2676.5,3.73622]
[1739439059573,5.562,2677.1,2677.0,3.73552]
[1739439059724,0.7949,2677.0,2676.2,7.54121]
[1739439060044,3.73597,2676.7,2676.2,0.8047]
[1739439060204,3.73643,2676.4,2676.0,4.37673724]
[1739439060404,0.8294,2676.5,2676.0,0.786]
[1739439060643,3.73637,2676.4,2676.0,0.786]
[1739439060803,3.73672,2676.2,2675.8,3.73719]
[1739439060999,3.73672,2676.2,2675.7,0.8252]
[1739439061241,0.0075,2676.3,2675.9,3.73705]
[1739439061415,0.015,2676.3,2675.9,3.73705]
[1739439062036,0.8294,2676.5,2675.7,8.15322724]
[1739439062238,0.282,2676.5,2675.9,0.833]
[1739439062750,0.282,2676.5,2676.3,3.73642]
[1739439062951,0.282,2676.5,2675.9,0.833]
[1739439063165,5.562,2676.7,2676.1,3.8162]
[1739439063337,5.562,2676.7,2676.3,3.59073724]
[1739439063537,0.7967,2676.6,2676.1,0.8162]
[1739439063739,0.015,2676.2,2675.4,3.59073724]
[1739439063926,0.015,2675.8,2675.0,0.8164]
[1739439064130,3.73827,2675.1,2674.6,0.8164]
[1739439064334,3.73827,2675.1,2674.4,4.0]
[1739439064538,0.015,2675.2,2674.4,2.5914004]
[1739439064758,3.73858,2674.9,2674.4,2.5914004]
[1739439065282,3.73888,2674.6,2674.4,1.0]
[1739439065977,4.53562,2674.8,2674.4,1.0]
[1739439066175,3.7389,2674.6,2674.4,1.0]
[1739439066376,4.53562,2674.8,2674.4,1.0]
[1739439066528,3.73893,2674.6,2674.4,1.0]
[1739439066728,4.53562,2674.8,2674.4,1.0]
[1739439067396,3.73879,2674.7,2674.4,1.0]
[1739439067550,4.53562,2674.8,2674.4,1.0]
[1739439068253,0.797,2674.8,2674.4,4.7391]
[1739439068479,4.5356,2674.8,2674.4,1.0]
[1739439069277,0.797,2674.8,2674.4,4.73909]
[1739439069483,0.797,2674.8,2674.4,1.0]
[1739439070387,4.49335,2675.1,2674.5,3.739]
[1739439070560,4.02048,2674.9,2674.4,5.213029]
[1739439070956,4.02048,2674.9,2674.4,1.473919]
[1739439071377,5.562,2675.0,2674.6,0.7628]
[1739439071547,5.562,2675.0,2674.6,4.50165]
[1739439071886,5.562,2675.0,2674.7,3.73873]
[1739439072086,5.28,2675.0,2674.8,3.73852]
[1739439072260,5.28,2675.0,2674.7,3.73873]
[1739439072586,5.28,2675.0,2674.7,3.73862]
[1739439073141,3.73786,2675.4,2674.7,4.64092774]
[1739439073450,0.8194,2675.3,2674.6,0.7628]
[1739439073660,3.73835,2675.0,2674.4,1.0]
[1739439073880,0.015,2674.9,2674.4,1.0]
[1739439074064,0.8284,2674.8,2674.4,1.0]
[1739439074274,3.73878,2674.7,2674.4,1.0]
[1739439074473,4.56703,2674.8,2674.4,1.0]
[1739439074867,3.73881,2674.7,2674.4,1.0]
[1739439076105,3.73887,2674.6,2674.4,1.0]
[1739439076658,3.73875,2674.7,2674.4,1.0]
[1739439076856,4.56702,2674.8,2674.4,1.0]
[1739439076857,0.8284,2674.8,2674.4,1.0]
[1739439077070,0.015,2674.9,2674.4,1.0]
[1739439077413,5.28,2675.0,2674.6,3.73887]
[1739439077970,5.28,2675.0,2674.5,0.7784]
[1739439078225,3.73862,2674.8,2674.4,4.73906]
[1739439078515,0.0075,2674.9,2674.5,3.73894]
[1739439078978,5.28,2675.0,2674.4,4.73906]
[1739439079320,5.28,2675.0,2674.7,3.73867]
[1739439079475,5.28,2675.0,2674.9,3.73845]
[1739439079674,0.282,2675.1,2674.9,3.73845]
[1739439080374,9.01777,2675.4,2674.9,3.73845]
[1739439080574,5.562,2675.4,2674.9,3.73845]
[1739439080912,5.562,2675.4,2675.0,3.73825]
[1739439081115,3.73803,2675.3,2674.7,3.73866]
[1739439081512,0.015,2675.3,2674.6,0.7959]
[1739439081718,3.73846,2674.9,2674.4,5.49248]
[1739439082271,0.0075,2675.0,2674.6,3.73881]
[1739439082600,5.28,2675.2,2674.8,3.73852]
[1739439082911,5.28,2675.2,2674.6,0.549221]
[1739439083116,5.28,2675.2,2674.9,3.73845]
[1739439083413,5.28,2675.2,2675.0,3.7383]
[1739439083585,0.282,2675.3,2674.9,4.55535]
[1739439084403,0.282,2675.3,2675.0,3.73823]
[1739439084616,5.562,2675.5,2675.1,3.73817]
[1739439084779,5.562,2675.5,2675.0,0.829351]
[1739439084985,5.562,2675.5,2675.1,3.73817]
[1739439085916,9.29962,2675.5,2675.1,3.73817]
[1739439086113,3.73783,2675.4,2674.9,0.8169]
[1739439086320,0.8124,2675.4,2674.7,0.7772]
[1739439086635,3.73853,2674.9,2674.4,5.51634]
[1739439086835,5.295,2675.2,2674.4,1.7772]
[1739439086987,5.295,2675.2,2674.4,5.51633]
[1739439087191,3.73839,2675.0,2674.5,3.73889]
[1739439087403,3.73828,2675.1,2674.4,1.7772]
[1739439087601,3.73828,2675.1,2674.6,3.73884]
[1739439087804,3.73828,2675.1,2674.7,3.73872]
[1739439088004,5.295,2675.2,2674.8,3.73859]
[1739439088199,9.03304,2675.2,2674.7,3.73864]
[1739439088936,9.01804,2675.2,2674.8,3.73859]
[1739439089433,9.01804,2675.2,2674.7,3.73873]
[1739439090047,12.75618,2675.2,2674.7,3.73873]
[1739439090342,9.01804,2675.2,2674.7,3.73873]
[1739439090504,5.28,2675.2,2674.5,3.73901]
[1739439090705,5.28,2675.2,2675.0,3.73827]
[1739439090952,5.28,2675.3,2675.1,3.73817]
[1739439091117,5.28,2675.3,2675.2,3.73803]
[1739439092206,5.28,2675.3,2675.2,4.55633]
[1739439092708,0.282,2675.9,2675.2,4.55633]
[1739439092709,0.282,2675.9,2675.8,3.7372]
[1739439093336,0.282,2675.9,2675.7,3.73732]
[1739439093522,0.282,2675.9,2675.7,3.73726]
[1739439093729,0.282,2675.9,2675.7,7.47452]
[1739439093920,0.282,2675.9,2675.7,3.73726]
[1739439094152,1.0562,2675.9,2675.4,3.0]
[1739439094328,3.73722,2675.8,2675.4,3.0]
[1739439094523,1.0562,2675.9,2675.1,4.51508]
[1739439094524,3.7374,2675.7,2675.1,4.51508]
[1739439095078,4.7933,2675.9,2675.3,3.73789]
[1739439095349,1.0562,2675.9,2675.5,3.7375]
[1739439095946,1.0562,2675.9,2675.5,7.47504]
[1739439096251,4.79334,2675.9,2675.4,3.73774]
[1739439096463,3.73726,2675.8,2675.1,7.51507]
[1739439096759,3.7373,2675.8,2675.3,3.73782]
[1739439096913,4.79334,2675.9,2675.1,3.777]
[1739439097119,4.7933,2675.9,2675.4,3.7377]
[1739439097425,0.7742,2675.9,2675.5,3.73759]
[1739439097630,4.01912,2675.9,2675.2,3.73803]
[1739439097811,0.282,2675.9,2675.3,3.73789]
[1739439098251,3.7372,2675.8,2675.3,3.73789]
[1739439098463,3.7372,2675.8,2675.2,3.73803]
[1739439098632,4.01909,2675.9,2675.4,3.73768]
[1739439098813,3.7372,2675.8,2675.4,3.73768]
[1739439099150,0.282,2675.9,2675.4,3.73768]
[1739439099361,4.01908,2675.9,2675.4,3.73768]
[1739439099767,0.282,2675.9,2675.6,4.50464]
[1739439100139,0.282,2675.9,2675.6,4.50459]
[1739439100334,0.282,2675.9,2675.7,3.73733]
[1739439100658,0.282,2675.9,2675.7,3.73725]
[1739439100861,5.28,2676.1,2675.7,3.73725]
[1739439101058,5.28,2676.1,2675.9,3.73703]
[1739439101461,5.28,2676.1,2675.8,3.73719]
[1739439101661,5.28,2676.1,2675.9,3.73705]
[1739439101862,5.28,2676.1,2675.9,3.73698]
[1739439102070,5.28,2676.1,2676.0,3.73692]
[1739439102226,5.577,2676.5,2675.9,3.73698]
[1739439102583,5.577,2676.5,2676.2,3.73655]
[1739439102760,5.577,2676.5,2675.8,3.73716]
[1739439102761,9.31331,2676.5,2675.8,3.73716]
[1739439102919,3.73646,2676.4,2675.9,3.73698]
[1739439103120,3.73636,2676.4,2675.9,7.47397]
[1739439103371,5.577,2676.5,2676.0,3.7369]
[1739439103672,3.73636,2676.4,2676.0,3.7369]
[1739439103867,3.73636,2676.4,2675.9,3.73705]
[1739439104161,7.4728,2676.4,2675.9,3.73705]
[1739439104320,3.73636,2676.4,2675.9,3.73696]
[1739439104862,3.7365,2676.3,2675.9,3.73696]
[1739439105036,5.577,2676.5,2676.0,3.7369]
[1739439105240,9.31328,2676.5,2676.0,3.7369]
[1739439105575,9.31324,2676.5,2676.1,3.73676]
[1739439105739,9.31324,2676.5,2676.0,3.7369]
[1739439105934,9.31324,2676.5,2676.0,3.73684]
[1739439106265,13.04957,2676.5,2676.0,3.73683]
[1739439106464,9.31324,2676.5,2676.0,3.73683]
[1739439106626,3.73637,2676.4,2676.0,3.73683]
[1739439107265,3.73637,2676.4,2675.8,3.73711]
[1739439107470,3.73659,2676.3,2675.8,3.73708]
[1739439108341,3.73637,2676.4,2675.9,3.73705]
[1739439108834,9.31332,2676.5,2676.0,3.73687]
[1739439109040,3.73638,2676.4,2676.0,3.73687]
[1739439109672,5.577,2676.5,2676.0,7.47366]
[1739439109833,5.577,2676.5,2676.0,3.73679]
[1739439110336,9.31325,2676.5,2676.0,3.73679]
[1739439110533,5.577,2676.5,2676.2,3.73654]
[1739439110785,5.577,2676.5,2676.0,4.51749]
[1739439110965,9.31329,2676.5,2676.1,3.73672]
[1739439111426,9.31329,2676.5,2676.0,4.51749]
[1739439111627,3.73636,2676.4,2676.0,4.51749]
[1739439112171,9.31329,2676.5,2676.0,4.51749]
[1739439112383,13.04961,2676.5,2676.0,4.51749]
[1739439112668,9.31329,2676.5,2676.0,4.51749]
[1739439112977,9.31329,2676.5,2676.1,3.73677]
[1739439113134,3.73638,2676.4,2676.0,0.7807]
[1739439113333,3.73654,2676.3,2675.9,3.73694]
[1739439113563,5.577,2676.5,2676.0,3.73689]
[1739439113747,9.3133,2676.5,2676.1,3.73674]
[1739439114272,9.3133,2676.5,2676.0,3.73689]
[1739439114592,9.3133,2676.5,2676.0,3.73684]
[1739439114791,13.0496,2676.5,2676.0,3.73684]
[1739439115095,5.577,2676.5,2676.3,3.73649]
[1739439115393,9.31322,2676.5,2676.1,3.73673]
[1739439115766,9.31322,2676.5,2675.9,3.73697]
[1739439115965,3.73638,2676.4,2675.9,3.73697]
[1739439116267,3.73637,2676.4,2676.0,3.73691]
[1739439116972,9.31327,2676.5,2676.1,3.73672]
[1739439117606,5.577,2676.5,2676.1,3.73672]
[1739439117899,5.577,2676.5,2676.0,3.7369]
[1739439118864,9.31325,2676.5,2676.0,3.7369]
[1739439119287,9.31325,2676.5,2676.0,7.47373]
[1739439119501,9.31325,2676.5,2676.0,7.47368]
[1739439119702,9.31325,2676.5,2676.0,3.73683]
[1739439119904,9.31325,2676.5,2675.8,0.7927]
[1739439119905,3.73644,2676.4,2675.9,3.737]
[1739439120059,9.31325,2676.5,2675.9,3.737]
[1739439120271,3.73636,2676.4,2676.0,3.7368]
[1739439121306,3.73636,2676.4,2675.8,4.52987]
[1739439121307,3.7365,2676.3,2675.8,4.52987]
[1739439121511,3.73656,2676.3,2675.8,4.52987]
[1739439121714,3.73656,2676.3,2675.9,3.73702]
[1739439122410,9.31323,2676.5,2675.9,3.73702]
[1739439122577,5.562,2676.5,2676.2,3.73656]
[1739439122908,9.29835,2676.5,2676.0,4.08457325]
[1739439123092,3.73661,2676.3,2676.0,0.34773325]
[1739439123401,3.7367,2676.2,2676.0,0.34773325]
[1739439123703,3.73678,2676.1,2675.7,3.73728]
[1739439123905,3.73678,2676.1,2675.6,7.5094]
[1739439124204,3.73702,2676.0,2675.6,0.772]
[1739439124402,3.73702,2676.0,2675.6,3.7374]
[1739439125007,3.73702,2676.0,2675.7,0.34778834]
[1739439126012,3.73706,2675.9,2675.7,0.34778834]
[1739439126165,0.7813,2675.8,2675.7,0.34778834]
[1739439126490,0.7813,2675.8,2675.5,3.73755]
[1739439126891,0.7813,2675.8,2675.5,3.73754]
[1739439127260,0.7813,2675.8,2675.7,3.73733]
[1739439127507,5.28,2676.1,2675.9,3.73706]
[1739439127707,5.28,2676.1,2676.0,3.73692]
[1739439128015,5.28,2676.1,2676.0,4.54502]
[1739439128179,0.799,2676.5,2676.4,3.73636]
[1739439128369,0.282,2676.6,2676.3,3.73647]
[1739439128575,0.282,2676.6,2676.5,3.73622]
[1739439128805,6.079,2676.8,2676.4,3.73633]
[1739439129010,6.079,2676.8,2676.4,3.73628]
[1739439129364,6.079,2676.8,2676.5,3.73612]
[1739439129630,5.28,2676.8,2676.5,4.08403812]
[1739439129827,5.28,2676.8,2676.5,0.34790812]
[1739439130005,5.28,2676.8,2676.5,4.08400812]
[1739439130329,0.7687,2677.0,2676.5,4.57056893]
[1739439130530,5.562,2677.1,2676.7,3.73587]
[1739439130731,9.2975,2677.1,2676.6,4.08398812]
[1739439131284,9.2975,2677.1,2676.6,4.08390812]
[1739439131489,5.562,2677.1,2676.7,3.73586]
[1739439132126,5.562,2677.1,2676.8,0.34790812]
[1739439132472,5.28,2677.1,2676.8,0.34790812]
[1739439133186,5.28,2677.1,2676.8,3.73576]
[1739439133693,5.28,2677.1,2676.7,4.08383812]
[1739439134392,5.28,2677.1,2676.7,0.34790812]
[1739439134595,3.73554,2677.0,2676.7,0.34790812]
[1739439134895,3.73563,2677.0,2676.5,3.7362]
[1739439135093,9.01539,2677.1,2676.6,3.73601]
[1739439135301,5.28,2677.1,2676.6,3.73601]
[1739439135463,5.28,2677.1,2676.8,3.73568]
[1739439136307,5.28,2677.2,2676.7,0.03735681]
[1739439136440,5.28,2677.2,2676.9,3.73566]
[1739439136640,5.28,2677.2,2677.0,3.73541]
[1739439137449,0.282,2677.4,2677.1,3.73538]
[1739439137648,0.282,2677.4,2677.2,3.73524]
[1739439138475,0.282,2677.4,2676.8,0.8175]
[1739439138679,9.01476,2677.6,2677.1,0.7551]
[1739439138994,3.73483,2677.5,2677.1,0.7551]
[1739439139203,3.735,2677.4,2677.0,3.73541]
[1739439139810,3.73533,2677.2,2676.6,3.73602]
[1739439140013,3.75021,2677.3,2676.6,3.73607]
[1739439140215,3.73547,2677.1,2676.6,3.73607]
[1739439140357,3.73547,2677.1,2676.6,8.3834849]
[1739439140552,3.73528,2677.2,2676.6,4.6473649]
[1739439140757,3.75017,2677.3,2676.6,0.9114049]
[1739439140758,0.015,2677.3,2676.6,0.9114049]
[1739439141025,3.73544,2677.1,2676.4,4.55256]
[1739439141225,0.8028,2677.0,2676.6,3.736]
[1739439141625,4.53834,2677.0,2676.4,4.55257]
[1739439141776,4.53834,2677.0,2676.5,3.7362]
[1739439141977,4.53834,2677.0,2676.5,3.73614]
[1739439142179,0.015,2676.9,2676.5,3.73614]
[1739439142633,3.75067,2676.9,2676.5,3.73614]
[1739439143194,3.75067,2676.9,2676.2,3.0]
[1739439143514,0.015,2676.9,2676.6,3.73608]
[1739439144012,3.75067,2676.9,2676.5,3.0]
[1739439144415,3.75067,2676.9,2676.5,3.73622]
[1739439145297,0.015,2676.9,2676.5,3.73622]
[1739439145982,0.015,2676.9,2676.5,3.73613]
[1739439146184,0.015,2676.9,2676.5,7.47229]
[1739439146436,0.015,2676.9,2676.5,3.73613]
[1739439146724,0.015,2676.9,2676.4,3.0]
[1739439146879,3.73602,2676.7,2676.4,3.0]
[1739439147222,3.73581,2676.8,2676.4,3.0]
[1739439147779,3.73597,2676.7,2676.4,3.0]
[1739439148079,3.7358,2676.8,2676.4,6.73634]
[1739439148317,5.295,2676.9,2676.4,6.73634]
[1739439148565,7.47172,2676.8,2676.4,3.0]
[1739439149318,3.73581,2676.8,2676.4,3.0]
[1739439149627,3.73581,2676.8,2676.2,0.7919]
[1739439149794,3.7358,2676.8,2676.4,6.73628]
[1739439150331,9.03073,2676.9,2676.5,3.73621]
[1739439151035,9.03073,2676.9,2676.3,3.7365]
[1739439151180,9.03073,2676.9,2676.5,3.7362]
[1739439152730,5.295,2676.9,2676.3,0.52776112]
[1739439153030,5.28,2676.9,2676.8,3.7358]
[1739439154091,0.281,2677.2,2676.8,3.7358]
[1739439154290,0.281,2677.2,2676.7,3.73591]
[1739439154513,0.281,2677.2,2676.9,3.73558]
[1739439154901,0.281,2677.2,2676.8,3.73574]
[1739439155299,0.281,2677.2,2676.7,0.456391]
[1739439155592,0.281,2677.3,2677.1,7.47061]
[1739439155803,6.0963,2677.4,2677.0,0.8016]
[1739439156053,5.28,2677.4,2677.3,3.7351]
[1739439156278,0.015,2677.6,2677.5,3.73476]
[1739439156477,6.3843,2677.7,2677.5,3.73476]
[1739439156778,5.28,2677.7,2677.5,3.73476]
[1739439157266,5.28,2677.7,2677.6,3.73468]
[1739439157818,5.28,2677.7,2677.4,4.50124]
[1739439158530,5.28,2677.7,2677.5,3.73472]
[1739439159609,5.28,2677.7,2677.5,3.73482]
[1739439159968,0.7528,2677.9,2677.5,3.73482]
[1739439160524,0.7528,2677.9,2677.6,3.73457]
[1739439161347,5.28,2678.0,2677.4,1.216424]
[1739439161660,0.281,2678.3,2677.6,4.35137911]
[1739439161865,0.281,2678.3,2678.0,3.73408]
[1739439162162,6.0779,2678.4,2677.7,3.03733762]
[1739439162163,3.73366,2678.4,2677.8,4.4887]
[1739439162462,4.01453,2678.5,2677.9,3.73418]
[1739439162644,0.281,2678.5,2677.9,3.73418]
[1739439162834,4.01445,2678.5,2678.0,3.73412]
[1739439163038,3.73363,2678.4,2677.9,3.73418]
[1739439163229,3.73345,2678.5,2677.9,3.73418]
[1739439163566,3.73345,2678.5,2678.0,3.73412]
[1739439164345,1.0789,2678.6,2678.2,3.73374]
[1739439164539,5.28,2680.0,2678.8,3.0]
[1739439164916,0.7979,2680.3,2679.6,3.73182]
[1739439165024,3.73128,2680.1,2679.7,0.03731428]
[1739439165224,3.73128,2680.1,2679.4,8.08341911]
[1739439165458,3.73134,2680.0,2679.4,4.48649]
[1739439165726,3.73859,2680.2,2679.4,5.66806991]
[1739439165927,0.015,2680.2,2679.7,3.73171]
[1739439166276,0.7979,2680.3,2679.5,3.03731511]
[1739439166476,0.7979,2680.3,2680.0,3.73133]
[1739439166640,0.015,2680.5,2680.0,3.73133]
[1739439167147,0.015,2680.5,2679.7,3.59697911]
[1739439167148,3.73081,2680.4,2679.7,3.59697911]
[1739439167471,0.015,2680.5,2679.7,4.76463091]
[1739439167771,3.73081,2680.4,2679.7,4.76463091]
[1739439168071,3.73081,2680.4,2679.8,3.73151]
[1739439168245,0.015,2680.5,2679.7,4.76454091]
[1739439168448,0.015,2680.5,2679.7,8.36156002]
[1739439168657,0.015,2680.5,2680.1,3.73108]
[1739439168976,0.015,2680.5,2679.9,3.73138]
[1739439169292,0.015,2680.5,2680.0,3.73134]
[1739439169886,3.74572,2680.5,2679.9,3.73146]
[1739439170091,0.015,2680.5,2679.8,0.836156]
[1739439170233,3.74572,2680.5,2679.9,0.4567846]
[1739439170430,3.74572,2680.5,2679.9,3.73139]
[1739439171292,3.74572,2680.5,2679.7,3.73165]
[1739439171431,3.73108,2680.2,2679.7,3.73165]
[1739439171632,3.73872,2680.1,2679.5,3.73195]
[1739439171835,0.7628,2680.0,2679.5,3.73195]
[1739439172078,0.7628,2680.0,2679.5,4.553809]
[1739439172240,3.73113,2680.2,2679.5,4.553809]
[1739439172241,5.28,2680.4,2679.9,3.73148]
[1739439172446,5.28,2680.4,2680.0,3.73122]
[1739439172933,5.28,2680.4,2680.1,3.7312]